bitfinex/quotes_BTCUSD_20251202
["timestamp","ask_amount","ask_price","bid_price","bid_amount"]
[1764647826428,0.24069319,87248.0,87242.0,0.01147854]
[1764647826662,0.01146223,87243.0,87242.0,0.01147854]
[1764647827050,0.01146171,87247.0,87240.0,0.00048731]
[1764647827254,0.24069771,87247.0,87246.0,0.01147854]
[1764647828735,0.01146184,87246.0,87245.0,0.01147854]
[1764647828938,0.01140984,87246.0,87245.0,0.07350854]
[1764647829466,0.01140984,87246.0,87245.0,0.01147854]
[1764647829695,0.22924738,87242.0,87240.0,0.00038395]
[1764647830422,0.24070785,87243.0,87240.0,0.00038395]
[1764647830627,0.01146158,87248.0,87247.0,0.01147854]
[1764647830981,0.01146158,87248.0,87246.0,0.01147854]
[1764647830982,0.22923424,87247.0,87246.0,0.01147854]
[1764647831601,0.22923539,87247.0,87244.0,0.05737854]
[1764647831797,0.2406971,87247.0,87244.0,0.01147854]
[1764647832374,0.24066703,87258.0,87244.0,0.01147854]
[1764647832549,0.01146105,87252.0,87244.0,0.01147854]
[1764647832707,0.01146171,87247.0,87244.0,0.01147854]
[1764647832914,0.22925,87241.0,87240.0,0.00038395]
[1764647833439,0.27804019,87241.0,87240.0,0.00038395]
[1764647833658,0.27804019,87241.0,87200.0,0.00010336]
[1764647833659,0.01146696,87207.0,87200.0,0.00010336]
[1764647833834,0.01146696,87207.0,87206.0,0.01147854]
[1764647834019,0.01146696,87207.0,87201.0,0.01828]
[1764647834020,0.01146736,87204.0,87201.0,0.01828]
[1764647834220,0.0114671,87206.0,87201.0,0.02974775]
[1764647834502,0.01146644,87211.0,87210.0,0.01147854]
[1764647834837,0.01146644,87211.0,87201.0,0.02975854]
[1764647834838,0.22935253,87202.0,87201.0,0.02975854]
[1764647835042,0.22935253,87202.0,87200.0,0.00038443]
[1764647836075,0.01146749,87203.0,87200.0,0.00038443]
[1764647836282,0.2408182,87203.0,87200.0,0.00038443]
[1764647836610,0.24081855,87203.0,87200.0,0.00038443]
[1764647837089,0.24081855,87203.0,87200.0,0.00238443]
[1764647837592,0.24081855,87203.0,87200.0,0.00038443]
[1764647837796,0.01146749,87203.0,87200.0,0.00338443]
[1764647838191,0.01146723,87205.0,87200.0,0.00348779]
[1764647838394,0.01146749,87203.0,87200.0,0.00348779]
[1764647838999,0.01146618,87213.0,87206.0,0.01147854]
[1764647839204,0.22933169,87210.0,87207.0,0.01147854]
[1764647839404,0.24079826,87210.0,87207.0,0.01147854]
[1764647839575,0.01146657,87210.0,87207.0,0.01147854]
[1764647840341,0.01146618,87213.0,87208.0,0.01828]
[1764647840541,0.01146526,87220.0,87216.0,0.01147854]
[1764647840743,0.01146447,87226.0,87220.0,0.00010336]
[1764647840946,0.01146473,87224.0,87223.0,0.01147854]
[1764647841187,0.24074246,87231.0,87222.0,0.24076379]
[1764647841386,0.22928235,87229.0,87227.0,0.01147854]
[1764647841542,0.22928235,87229.0,87218.0,0.02974552]
[1764647841543,0.24076439,87223.0,87218.0,0.01828]
[1764647841741,0.01146512,87221.0,87218.0,0.01828]
[1764647841945,0.08067408,87230.0,87218.0,0.01828]
[1764647841946,0.81789399,87232.0,87220.0,0.00010336]
[1764647842173,0.01146302,87237.0,87230.0,0.00010336]
[1764647842328,0.24072078,87238.0,87236.0,0.01147854]
[1764647842528,0.24072078,87238.0,87236.0,0.01186297]
[1764647843192,0.24072078,87238.0,87236.0,0.00038443]
[1764647843952,0.01148803,87237.0,87236.0,0.00338443]
[1764647844174,0.24072078,87238.0,87236.0,0.00038443]
[1764647844589,0.24072078,87238.0,87236.0,0.00238443]
[1764647844782,0.24072078,87238.0,87236.0,0.00038443]
[1764647845076,0.00273199,87237.0,87236.0,0.00038443]
[1764647846007,0.00273199,87237.0,87236.0,0.00238443]
[1764647846207,0.00273199,87237.0,87236.0,0.00038443]
[1764647846708,0.32573199,87237.0,87236.0,0.00038443]
[1764647846875,0.35033611,87237.0,87236.0,0.00038443]
[1764647848837,0.35033611,87237.0,87220.0,0.01838336]
[1764647849044,0.30074268,87221.0,87220.0,0.0186646]
[1764647849443,0.30074268,87221.0,87220.0,0.0003846]
[1764647850483,0.32540697,87221.0,87220.0,0.0033846]
[1764647850662,0.64840697,87221.0,87220.0,0.0033846]
[1764647850868,0.64840697,87221.0,87220.0,0.0003846]
[1764647851046,0.64840697,87221.0,87220.0,0.0023846]
[1764647851047,0.659895,87221.0,87220.0,0.0023846]
[1764647851249,0.64840697,87221.0,87220.0,0.0023846]
[1764647852280,0.64840697,87221.0,87220.0,0.0003846]
[1764647852688,0.64840697,87221.0,87220.0,0.0023846]
[1764647852970,0.64840697,87221.0,87220.0,0.0003846]
[1764647853171,0.64840697,87221.0,87220.0,0.0023846]
[1764647853574,0.55234201,87206.0,87190.0,0.00010336]
[1764647853819,0.55234201,87206.0,87205.0,0.00228505]
[1764647853820,2.64621644,87206.0,87205.0,0.00228505]
[1764647853992,0.22938147,87191.0,87190.0,0.00010336]
[1764647854193,0.22938147,87191.0,87190.0,0.00048927]
[1764647854394,0.01146802,87199.0,87190.0,0.00048927]
[1764647854620,0.01146867,87194.0,87193.0,0.01147854]
[1764647855032,0.22937358,87194.0,87193.0,0.01147854]
[1764647855450,0.22938147,87191.0,87190.0,0.00038591]
[1764647856209,0.06921014,87192.0,87190.0,0.00038591]
[1764647856439,0.22938147,87191.0,87190.0,0.00038591]
[1764647856839,0.22938147,87191.0,87190.0,0.00338591]
[1764647858246,0.33322824,87191.0,87190.0,0.00338591]
[1764647858625,0.2655388,87191.0,87190.0,0.00338591]
[1764647858900,0.25405077,87191.0,87190.0,0.00038591]
[1764647859077,0.25405077,87191.0,87190.0,0.00238591]
[1764647859280,0.22938147,87191.0,87190.0,0.00238591]
[1764647859493,0.25404827,87191.0,87190.0,0.00238591]
[1764647860058,0.33866548,87191.0,87190.0,0.00238591]
[1764647860311,0.2655363,87191.0,87190.0,0.00038591]
[1764647860526,0.57704827,87191.0,87190.0,0.00038591]
[1764647861419,0.5885363,87191.0,87190.0,0.00038591]
[1764647861622,0.57704827,87191.0,87190.0,0.00038591]
[1764647862030,0.5885363,87191.0,87190.0,0.00038591]
[1764647862212,0.57704827,87191.0,87190.0,0.00038591]
[1764647862610,0.5885363,87191.0,87190.0,0.00038591]
[1764647862931,0.57704827,87191.0,87190.0,0.00038591]
[1764647864321,0.57833644,87191.0,87190.0,0.00038591]
[1764647866072,2.62999833,87191.0,87190.0,0.00038591]
[1764647866633,2.58982447,87191.0,87190.0,0.00038591]
[1764647866843,2.58982447,87191.0,87132.0,0.04904]
[1764647866844,0.02595497,87191.0,87132.0,0.04904]
[1764647867039,0.01147697,87131.0,87121.0,0.01147854]
[1764647867262,0.72165122,87135.0,87130.0,0.0115819]
[1764647867467,0.24101192,87133.0,87130.0,0.0115819]
[1764647867662,0.22953942,87131.0,87130.0,0.01147854]
[1764647868306,0.00038469,87131.0,87130.0,0.01147854]
[1764647868519,0.00038469,87131.0,87130.0,0.07604854]
[1764647868783,0.00038469,87131.0,87130.0,0.07904854]
[1764647869407,0.00038469,87131.0,87130.0,0.01447854]
[1764647869611,0.00038469,87131.0,87125.0,0.04904]
[1764647869818,0.01147736,87128.0,87124.0,0.01147789]
[1764647870021,0.0114771,87130.0,87126.0,0.01147763]
[1764647870289,0.00038469,87131.0,87130.0,0.01147854]
[1764647870488,0.01147763,87126.0,87120.0,0.33701985]
[1764647870635,0.01147763,87126.0,87125.0,0.01147854]
[1764647870965,0.01147763,87126.0,87125.0,0.01247854]
[1764647871169,0.00038469,87131.0,87130.0,0.01147854]
[1764647871378,0.00038469,87131.0,87130.0,0.004]
[1764647871757,0.22992439,87131.0,87129.0,0.01147854]
[1764647871938,0.00038469,87131.0,87130.0,0.06457]
[1764647872143,0.00038469,87131.0,87130.0,0.17191854]
[1764647872655,0.00038469,87131.0,87130.0,0.17591854]
[1764647873259,0.00038469,87131.0,87130.0,0.005]
[1764647878557,0.00038469,87131.0,87130.0,0.001]
[1764647878941,0.00038469,87131.0,87130.0,0.003]
[1764647879356,0.00038469,87131.0,87130.0,0.002]
[1764647880560,0.40379446,87131.0,87130.0,0.002]
[1764647880771,0.32338469,87131.0,87130.0,0.002]
[1764647881787,2.33487272,87131.0,87130.0,0.002]
[1764647883110,0.34166469,87131.0,87130.0,0.002]
[1764647883242,0.32338469,87131.0,87120.0,0.00010336]
[1764647883446,0.01147802,87123.0,87119.0,0.01147854]
[1764647883637,0.01147815,87122.0,87119.0,0.01147854]
[1764647883832,0.01147855,87119.0,87118.0,0.01147854]
[1764647884486,0.24104959,87119.0,87118.0,0.01147854]
[1764647884883,0.01147855,87119.0,87118.0,0.01147854]
[1764647885285,0.01147881,87117.0,87116.0,0.01147854]
[1764647886659,0.01147868,87118.0,87116.0,0.01147854]
[1764647886841,0.01147868,87118.0,87117.0,0.01147854]
[1764647887043,0.01147855,87119.0,87118.0,0.01147854]
[1764647887608,0.24104959,87119.0,87118.0,0.01147854]
[1764647887829,0.24104959,87119.0,87113.0,0.00164641]
[1764647887830,0.01147894,87116.0,87113.0,0.00164641]
[1764647888060,0.01147894,87116.0,87114.0,0.01147854]
[1764647888269,0.24104959,87119.0,87114.0,0.01147854]
[1764647888487,0.01147894,87116.0,87114.0,0.01147854]
[1764647888656,0.24106033,87116.0,87115.0,0.01147854]
[1764647889203,0.22958422,87114.0,87113.0,0.01312495]
[1764647889621,0.22958422,87114.0,87113.0,0.00164641]
[1764647890705,0.55258422,87114.0,87113.0,0.00164641]
[1764647890909,0.56407225,87114.0,87113.0,0.00164641]
[1764647891103,0.55258422,87114.0,87113.0,0.00164641]
[1764647891650,0.55258422,87114.0,87113.0,0.00464641]
[1764647891860,0.55258422,87114.0,87113.0,0.00264641]
[1764647892146,0.55258422,87114.0,87113.0,0.00164641]
[1764647892697,0.56407225,87114.0,87113.0,0.00164641]
[1764647893330,0.56407225,87114.0,87113.0,0.00364641]
[1764647893703,0.55258422,87114.0,87113.0,0.00364641]
[1764647894328,0.57727765,87114.0,87113.0,0.00364641]
[1764647894934,0.55261848,87101.0,87100.0,0.0004]
[1764647895308,0.34768732,87101.0,87100.0,0.0004]
[1764647895494,0.323,87101.0,87100.0,0.0004]
[1764647896082,0.32338445,87101.0,87100.0,0.0004]
[1764647896550,0.32338445,87101.0,87100.0,0.0014]
[1764647897315,0.34809658,87101.0,87100.0,0.0014]
[1764647899198,0.32338445,87101.0,87100.0,0.0014]
[1764647899401,0.3480887,87101.0,87100.0,0.0014]
[1764647900199,0.32338445,87101.0,87100.0,0.0014]
[1764647900401,0.32338445,87101.0,87100.0,0.00180899]
[1764647901369,0.34808692,87101.0,87100.0,0.00180899]
[1764647901846,0.4743124,87101.0,87100.0,0.00180899]
[1764647902065,0.22967122,87081.0,87080.0,0.00010336]
[1764647902216,0.01148422,87076.0,87070.0,0.2480814]
[1764647902752,0.01148435,87075.0,87070.0,0.2480814]
[1764647902959,0.01148382,87079.0,87073.0,0.2296898]
[1764647903164,0.49212705,87080.0,87075.0,0.01148435]
[1764647903391,0.24115972,87080.0,87072.0,0.22969496]
[1764647903589,0.01148408,87077.0,87072.0,0.2411797]
[1764647904346,0.01148408,87077.0,87075.0,0.002]
[1764647904719,0.01148382,87079.0,87074.0,0.22968745]
[1764647904870,0.01148382,87079.0,87074.0,0.24117193]
[1764647905274,0.00038445,87101.0,87082.0,0.22966697]
[1764647905621,0.0114829,87086.0,87080.0,0.00010336]
[1764647905925,0.0114829,87086.0,87080.0,0.22977495]
[1764647906332,0.0114829,87086.0,87081.0,0.22966866]
[1764647906679,0.0114829,87086.0,87083.0,0.22966511]
[1764647906879,0.01148277,87087.0,87083.0,0.22966511]
[1764647907302,0.01148263,87088.0,87083.0,0.22966511]
[1764647907541,0.01148277,87087.0,87083.0,0.22966511]
[1764647907745,0.01148303,87085.0,87083.0,0.001]
[1764647907948,0.24114565,87085.0,87083.0,0.001]
[1764647908215,0.22966262,87085.0,87083.0,0.001]
[1764647908348,0.01148263,87088.0,87083.0,0.23066431]
[1764647908550,0.24113543,87088.0,87083.0,0.001]
[1764647908755,0.0114829,87086.0,87083.0,0.001]
[1764647908953,0.01148277,87087.0,87082.0,0.22966648]
[1764647909154,0.01148277,87087.0,87083.0,0.001]
[1764647909600,0.01148277,87087.0,87082.0,0.22966648]
[1764647909751,0.06921014,87089.0,87083.0,0.23066356]
[1764647909951,0.06921014,87089.0,87087.0,0.22965531]
[1764647910373,0.323,87091.0,87087.0,0.22965531]
[1764647910550,0.323,87091.0,87083.0,0.001]
[1764647910753,0.323,87091.0,87083.0,0.01148329]
[1764647910993,0.01148263,87088.0,87087.0,0.001]
[1764647911154,0.01148237,87090.0,87087.0,0.001]
[1764647912386,0.08069238,87091.0,87088.0,0.22965276]
[1764647913237,0.06921014,87091.0,87088.0,0.22965276]
[1764647914146,0.48064336,87092.0,87090.0,0.22964572]
[1764647914391,0.01148224,87091.0,87088.0,0.22965276]
[1764647915958,0.0114825,87089.0,87086.0,0.22965713]
[1764647916202,0.0114825,87089.0,87084.0,0.22966222]
[1764647916628,0.0114825,87089.0,87085.0,0.22965918]
[1764647917260,0.0114825,87089.0,87086.0,0.001]
[1764647917418,0.0114825,87089.0,87085.0,0.24114221]
[1764647917613,0.01148263,87088.0,87084.0,0.22966222]
[1764647917820,0.01148263,87088.0,87085.0,0.001]
[1764647918395,0.01148263,87088.0,87085.0,0.23065903]
[1764647918629,0.01148263,87088.0,87085.0,0.001]
[1764647919065,0.01148263,87088.0,87083.0,0.24114725]
[1764647919287,0.0114829,87086.0,87082.0,0.24114562]
[1764647919735,0.01148277,87087.0,87082.0,0.25262904]
[1764647919968,0.01148277,87087.0,87085.0,0.001]
[1764647920146,0.01148277,87087.0,87083.0,0.22966373]
[1764647920346,0.01148263,87088.0,87083.0,0.22966373]
[1764647920723,0.06921014,87091.0,87086.0,0.24114093]
[1764647920959,0.06921014,87091.0,87088.0,0.22965204]
[1764647921198,0.10548416,87091.0,87087.0,0.229653]
[1764647922078,0.08069238,87091.0,87087.0,0.229653]
[1764647922289,0.10549347,87091.0,87087.0,0.229653]
[1764647922509,0.08069238,87091.0,87087.0,0.229653]
[1764647923144,0.10549978,87091.0,87087.0,0.229653]
[1764647923344,0.08069238,87091.0,87087.0,0.229653]
[1764647923978,0.08069238,87091.0,87087.0,0.23006209]
[1764647924180,0.08069238,87091.0,87087.0,0.229653]
[1764647924799,0.2411331,87089.0,87086.0,0.01147854]
[1764647925420,0.2411331,87089.0,87083.0,0.24114702]
[1764647925421,0.01148277,87087.0,87083.0,0.24114702]
[1764647925822,0.06921014,87091.0,87088.0,0.06621]
[1764647926125,0.22960034,87108.0,87098.0,0.01148131]
[1764647926351,0.01147987,87109.0,87100.0,0.29583112]
[1764647926557,0.01148,87108.0,87100.0,0.29583112]
[1764647926963,0.01148026,87106.0,87100.0,0.29583112]
[1764647927684,0.01148066,87103.0,87100.0,0.29583112]
[1764647927848,0.01148066,87103.0,87100.0,0.22962112]
[1764647928859,0.01148066,87103.0,87100.0,0.23062112]
[1764647929503,0.24109408,87103.0,87100.0,0.001]
[1764647930091,0.23000293,87101.0,87100.0,0.001]
[1764647930491,0.00038445,87101.0,87100.0,0.001]
[1764647931088,0.00038445,87101.0,87100.0,0.08545]
[1764647931297,0.00038445,87101.0,87100.0,0.18899854]
[1764647931489,0.00038445,87101.0,87100.0,0.09692854]
[1764647931692,0.00038445,87101.0,87100.0,0.18899854]
[1764647933538,0.00038445,87101.0,87100.0,0.18799854]
[1764647933699,0.00038445,87101.0,87100.0,0.18899854]
[1764647933909,0.00038445,87101.0,87100.0,0.10092854]
[1764647934104,0.00038445,87101.0,87100.0,0.03371854]
[1764647935505,0.00038445,87101.0,87100.0,0.02324]
[1764647935893,0.00038445,87101.0,87100.0,0.02224]
[1764647936296,0.00038445,87101.0,87100.0,0.01924]
[1764647936616,0.00038445,87101.0,87100.0,0.02224]
[1764647939511,0.00038445,87101.0,87100.0,0.004]
[1764647939512,0.06959459,87101.0,87100.0,0.004]
[1764647940283,0.06959459,87101.0,87100.0,0.003]
[1764647940491,0.01148171,87095.0,87092.0,0.01849173]
[1764647940693,0.22963694,87094.0,87092.0,0.00025173]
[1764647941618,0.01148171,87095.0,87092.0,0.00025173]
[1764647941969,0.22963907,87094.0,87092.0,0.00025173]
[1764647942290,0.01148171,87095.0,87092.0,0.00225173]
[1764647942435,0.01148171,87095.0,87092.0,0.00025173]
[1764647942877,0.01148131,87098.0,87093.0,0.01148197]
[1764647943191,0.01148131,87098.0,87093.0,0.22963783]
[1764647943521,0.01148145,87097.0,87093.0,0.22963783]
[1764647944135,0.01148131,87098.0,87093.0,0.01148197]
[1764647944299,0.01148131,87098.0,87093.0,0.24111967]
[1764647944500,0.01148131,87098.0,87094.0,0.01148184]
[1764647944972,0.31069485,87101.0,87098.0,0.22962639]
[1764647944973,0.00038445,87101.0,87098.0,0.22962639]
[1764647945172,0.00038445,87101.0,87098.0,0.29583639]
[1764647945384,0.00038445,87101.0,87098.0,0.3073177]
[1764647945706,0.00038445,87101.0,87099.0,0.22962166]
[1764647946866,0.00038445,87101.0,87100.0,0.15495]
[1764647947172,0.00038445,87101.0,87100.0,0.06147]
[1764647947539,0.00038445,87101.0,87099.0,0.22962166]
[1764647948165,0.00038445,87101.0,87099.0,0.23262166]
[1764647948498,0.00038445,87101.0,87099.0,0.23362166]
[1764647948670,0.00038445,87101.0,87100.0,0.06147]
[1764647949308,0.00038445,87101.0,87099.0,0.32710166]
[1764647949309,0.00038445,87101.0,87099.0,0.004]
[1764647949468,0.06921014,87100.0,87099.0,0.004]
[1764647949673,0.06921014,87100.0,87099.0,0.003]
[1764647950023,0.2296343,87095.0,87093.0,0.01824]
[1764647950195,0.2296343,87095.0,87085.0,0.04629]
[1764647950390,0.22963958,87093.0,87080.0,0.24125895]
[1764647950590,0.22963958,87093.0,87083.0,0.02972329]
[1764647951621,0.22963958,87093.0,87085.0,0.01148303]
[1764647951821,0.22963958,87093.0,87083.0,0.01824]
[1764647952184,0.01148131,87098.0,87092.0,0.00425173]
[1764647952426,0.24110515,87099.0,87092.0,0.02721238]
[1764647952627,0.01148105,87100.0,87094.0,0.01148184]
[1764647953096,0.01148118,87099.0,87094.0,0.01148184]
[1764647953279,0.01148118,87099.0,87094.0,0.2411166]
[1764647953677,0.00038445,87101.0,87098.0,0.06147]
[1764647953881,0.00038445,87101.0,87099.0,0.29109167]
[1764647954895,0.00038445,87101.0,87099.0,0.29209167]
[1764647955591,0.00038445,87101.0,87099.0,0.29109167]
[1764647956045,0.00038445,87101.0,87100.0,0.22962112]
[1764647957633,0.00038445,87101.0,87100.0,0.23062112]
[1764647957822,0.00038445,87101.0,87100.0,0.23362112]
[1764647958881,0.00038445,87101.0,87100.0,0.004]
[1764647959479,0.06959459,87101.0,87100.0,0.004]
[1764647960428,0.06959459,87101.0,87100.0,0.003]
[1764647960632,0.01148197,87093.0,87088.0,0.22965031]
[1764647960935,0.01148145,87097.0,87091.0,0.24112474]
[1764647961135,0.01148158,87096.0,87092.0,0.01148211]
[1764647961466,0.80718888,87100.0,87093.0,0.01148197]
[1764647961670,0.80718888,87100.0,87097.0,0.01148145]
[1764647961874,0.06959459,87101.0,87099.0,0.22962376]
[1764647963764,0.00038445,87101.0,87100.0,0.15495]
[1764647964341,0.00038445,87101.0,87100.0,0.16642854]
[1764647964792,0.00038445,87101.0,87100.0,0.15495]
[1764647965202,0.00038445,87101.0,87100.0,0.15695]
[1764647965558,0.00038445,87101.0,87100.0,0.06347]
[1764647966052,0.00038445,87101.0,87100.0,0.07494854]
[1764647966779,0.00038445,87101.0,87100.0,0.06347]
[1764647967006,0.00038445,87101.0,87100.0,0.15695]
[1764647967226,0.00038445,87101.0,87100.0,0.16842854]
[1764647967919,0.00038445,87101.0,87100.0,0.16742854]
[1764647968303,0.00038445,87101.0,87100.0,0.17042854]
[1764647969464,0.00038445,87101.0,87100.0,0.16942854]
[1764647970345,0.00038445,87101.0,87100.0,0.17042854]
[1764647971063,0.00038445,87101.0,87100.0,0.23295153]
[1764647971716,0.00038445,87101.0,87100.0,0.22147299]
[1764647971917,0.00038445,87101.0,87100.0,0.23295153]
[1764647972222,0.00038445,87101.0,87100.0,0.17042854]
[1764647975025,0.00038445,87101.0,87100.0,0.15895]
[1764647975182,0.00038445,87101.0,87100.0,0.17042854]
[1764647975381,0.00038445,87101.0,87100.0,0.23295153]
[1764647976180,0.00038445,87101.0,87100.0,0.63295153]
[1764647980719,0.00038445,87101.0,87100.0,0.23295153]
[1764647981350,0.00038445,87101.0,87100.0,0.06547]
[1764647981552,0.00038445,87101.0,87100.0,0.07694854]
[1764647983291,0.00038445,87101.0,87100.0,0.01547854]
[1764647983478,0.00038445,87101.0,87100.0,0.004]
[1764647985949,0.00038445,87101.0,87100.0,0.003]
[1764647986159,0.00038445,87101.0,87099.0,0.22962373]
[1764647986282,0.00038445,87101.0,87100.0,0.001]
[1764647991487,0.00038445,87101.0,87100.0,0.15800854]
[1764647991690,0.00038445,87101.0,87100.0,0.17624854]
[1764647995345,0.00038445,87101.0,87100.0,0.08877854]
[1764647995793,0.00038445,87101.0,87100.0,0.17624854]
[1764647996953,0.00038445,87101.0,87100.0,0.23877153]
[1764647997155,0.00038445,87101.0,87100.0,0.23777153]
[1764647997560,0.00038445,87101.0,87100.0,0.23877153]
[1764647997940,0.00038445,87101.0,87100.0,0.23777153]
[1764647998462,0.00038445,87101.0,87100.0,0.24277153]
[1764647999871,0.00038445,87101.0,87100.0,0.22453153]
[1764648000076,0.00038445,87101.0,87100.0,0.24277153]
[1764648000399,0.00038445,87101.0,87100.0,0.64277153]
[1764648000673,0.00038445,87101.0,87100.0,0.48576299]
[1764648000876,0.00038445,87101.0,87100.0,0.005]
[1764648001099,0.00038445,87101.0,87100.0,0.23462112]
[1764648001639,0.00038445,87101.0,87100.0,0.38662966]
[1764648002084,0.00038445,87101.0,87100.0,0.30215966]
[1764648002499,0.00038445,87101.0,87100.0,0.38962966]
[1764648002776,0.00038445,87101.0,87100.0,0.44067411]
[1764648002986,0.00038445,87101.0,87100.0,0.45015265]
[1764648003196,4.45e-06,87101.0,87100.0,0.45015265]
[1764648003407,0.3224304,87129.0,87127.0,0.22954909]
[1764648003615,0.3224304,87129.0,87127.0,0.22962478]
[1764648003815,0.3224304,87129.0,87127.0,7.569e-05]
[1764648004178,0.0114771,87130.0,87127.0,7.569e-05]
[1764648004584,0.22954733,87128.0,87127.0,7.569e-05]
[1764648005303,0.55254733,87128.0,87127.0,7.569e-05]
[1764648005911,0.55254733,87128.0,87127.0,0.00107569]
[1764648006268,0.55254733,87128.0,87127.0,7.569e-05]
[1764648006679,0.55354733,87128.0,87127.0,7.569e-05]
[1764648009562,0.324,87128.0,87127.0,7.569e-05]
[1764648010286,0.40469817,87128.0,87127.0,7.569e-05]
[1764648010613,0.001,87128.0,87127.0,7.569e-05]
[1764648010817,0.001,87128.0,87127.0,0.31867419]
[1764648011084,0.03450185,87146.0,87143.0,0.01147539]
[1764648011226,0.03450185,87146.0,87136.0,0.10311]
[1764648011227,0.01114,87181.0,87169.0,0.01147196]
[1764648011431,0.01114,87181.0,87171.0,0.0114717]
[1764648011638,0.0002,87190.0,87180.0,0.27319041]
[1764648011843,0.0002,87190.0,87189.0,0.16563299]
[1764648012088,0.0002,87190.0,87189.0,0.19539153]
[1764648012268,0.0114642,87228.0,87213.0,0.22932258]
[1764648012269,0.01094,87219.0,87213.0,0.22932258]
[1764648012468,0.01132517,87219.0,87216.0,0.24077889]
[1764648012668,0.01132517,87219.0,87216.0,0.24078026]
[1764648012868,0.01132517,87219.0,87216.0,0.01146578]
[1764648013068,0.01114,87217.0,87214.0,0.01146604]
[1764648013270,0.01132517,87219.0,87214.0,0.01147854]
[1764648013489,0.01132517,87219.0,87216.0,0.01146578]
[1764648013667,0.01132517,87219.0,87217.0,0.22931309]
[1764648013869,0.01132517,87219.0,87216.0,0.01246578]
[1764648014150,0.01132517,87219.0,87216.0,0.001]
[1764648014407,0.01114,87217.0,87216.0,0.001]
[1764648014569,0.01146696,87207.0,87204.0,0.01828]
[1764648014765,0.0114667,87209.0,87204.0,0.01828]
[1764648015140,0.0114667,87209.0,87204.0,0.01146736]
[1764648015308,0.01146683,87208.0,87203.0,0.01146749]
[1764648015517,0.01146565,87217.0,87204.0,0.01146736]
[1764648015720,0.01146604,87214.0,87211.0,0.01147854]
[1764648016081,0.01140235,87214.0,87211.0,0.01147854]
[1764648016419,0.34579056,87219.0,87213.0,0.01146618]
[1764648016570,0.01146552,87218.0,87214.0,0.01147854]
[1764648016923,0.00192295,87215.0,87214.0,0.01147854]
[1764648017070,0.01114,87214.0,87211.0,0.02294498]
[1764648017277,0.01114,87214.0,87211.0,0.25227278]
[1764648017486,0.01097879,87214.0,87211.0,0.25227278]
[1764648017926,0.01098,87212.0,87208.0,0.01146683]
[1764648018100,0.01146657,87210.0,87203.0,0.02294603]
[1764648018305,0.01146841,87196.0,87190.0,0.01147854]
[1764648018564,0.01146959,87187.0,87177.0,0.02294945]
[1764648018773,0.25183195,87191.0,87183.0,0.01828]
[1764648018903,0.01146933,87189.0,87186.0,0.01147854]
[1764648019116,0.01098,87184.0,87183.0,0.01828]
[1764648019545,0.323,87190.0,87183.0,0.01828]
[1764648019546,0.323,87190.0,87184.0,0.01146999]
[1764648019754,0.33485413,87190.0,87185.0,0.01146986]
[1764648020109,0.33485413,87190.0,87186.0,0.01146973]
[1764648020339,0.01185413,87190.0,87186.0,0.01146973]
[1764648020513,0.01098,87187.0,87185.0,0.01146986]
[1764648021375,0.01033124,87187.0,87184.0,0.2408687]
[1764648021759,0.01017003,87187.0,87184.0,0.2408687]
[1764648021992,0.01017003,87187.0,87183.0,0.02975012]
[1764648022173,0.01017003,87187.0,87185.0,0.001]
[1764648022372,0.01146933,87189.0,87185.0,0.001]
[1764648022373,0.34544907,87191.0,87185.0,0.01146986]
[1764648022575,0.00101241,87186.0,87183.0,0.02975012]
[1764648022873,0.01146946,87188.0,87184.0,0.001]
[1764648023080,0.01147275,87163.0,87154.0,0.01147854]
[1764648023382,0.01147209,87168.0,87158.0,0.01147341]
[1764648023578,0.01147209,87168.0,87162.0,0.01147288]
[1764648023781,0.80421425,87170.0,87163.0,0.01147275]
[1764648023982,0.80421425,87170.0,87166.0,0.01147236]
[1764648024165,0.01146973,87186.0,87172.0,0.01147157]
[1764648024537,0.01999998,87210.0,87172.0,0.01147157]
[1764648024538,0.34128,87187.0,87185.0,0.001]
[1764648024743,0.48121425,87200.0,87179.0,0.24088272]
[1764648024744,0.01146736,87204.0,87195.0,0.01146854]
[1764648024954,0.03448143,87205.0,87198.0,0.01146815]
[1764648025158,0.01146696,87207.0,87206.0,0.01147854]
[1764648025343,0.04594254,87215.0,87207.0,0.01146696]
[1764648025547,0.01146604,87214.0,87208.0,0.01146683]
[1764648025832,0.01146604,87214.0,87213.0,0.01147854]
[1764648026048,0.01146644,87211.0,87210.0,0.01147854]
[1764648026214,0.01146578,87216.0,87212.0,0.01147854]
[1764648026573,0.56378426,87215.0,87212.0,0.01147854]
[1764648026755,0.56370757,87215.0,87212.0,0.01147854]
[1764648027186,0.01146644,87211.0,87208.0,7.569e-05]
[1764648027382,0.22933412,87209.0,87208.0,7.569e-05]
[1764648027588,0.01146539,87219.0,87212.0,0.01147854]
[1764648027739,0.01146223,87243.0,87230.0,0.01147854]
[1764648027972,0.01146315,87236.0,87230.0,0.01147854]
[1764648028180,0.00242505,87231.0,87222.0,0.01828]
[1764648028380,0.01146342,87234.0,87226.0,0.01147854]
[1764648028581,0.01146355,87233.0,87227.0,0.24075114]
[1764648028786,0.33446368,87232.0,87231.0,0.01147854]
[1764648030254,0.33446368,87232.0,87231.0,0.01247854]
[1764648030455,0.33446368,87232.0,87231.0,0.001]
[1764648030620,0.40367382,87232.0,87231.0,0.001]
[1764648031207,0.40367382,87232.0,87231.0,0.002]
[1764648031407,0.01146499,87222.0,87221.0,0.01147854]
[1764648031607,0.48121425,87230.0,87219.0,0.01828]
[1764648031808,0.01146447,87226.0,87223.0,0.01147854]
[1764648032220,0.01140068,87227.0,87223.0,0.01147854]
[1764648032641,0.01140068,87227.0,87223.0,0.0229434]
[1764648032815,0.49267819,87230.0,87228.0,0.01147854]
[1764648033016,0.01146342,87234.0,87233.0,0.01147854]
[1764648033359,0.55194483,87234.0,87233.0,0.01147854]
[1764648034270,0.55194483,87234.0,87226.0,0.01146447]
[1764648034271,0.323,87233.0,87227.0,0.01146434]
[1764648034470,0.323,87233.0,87232.0,0.01147854]
[1764648035586,0.32235169,87233.0,87232.0,0.01147854]
[1764648036076,0.01146381,87231.0,87227.0,0.01147854]
[1764648036318,0.24075417,87226.0,87214.0,0.01146604]
[1764648036557,0.01146526,87220.0,87214.0,0.01146604]
[1764648036793,0.01146526,87220.0,87213.0,0.24078979]
[1764648037016,0.01146486,87223.0,87218.0,0.01147854]
[1764648037242,0.01146499,87222.0,87218.0,0.02294406]
[1764648037407,0.01114136,87223.0,87222.0,0.01147854]
[1764648038841,0.01114136,87223.0,87222.0,0.01347854]
[1764648039057,0.01114136,87223.0,87222.0,0.002]
[1764648039259,0.33414136,87223.0,87222.0,0.002]
[1764648040157,0.33414136,87223.0,87222.0,0.001]
[1764648041089,0.33414136,87223.0,87208.0,7.569e-05]
[1764648041090,0.22933412,87209.0,87208.0,7.569e-05]
[1764648041445,0.48121425,87218.0,87208.0,7.569e-05]